[Event "*** Titled Tuesday Blitz"]
[Site "Chess.com"]
[Date "2019.02.05"]
[Round "6"]
[White "wenx95"]
[Black "FrankieJay"]
[Result "1-0"]
[WhiteElo "2515"]
[BlackElo "2377"]
[TimeControl "180+2"]
[EndTime "14:21:55 PST"]
[Termination "wenx95 won by resignation"]

1. c4 {[%clk 0:03:01.9]} 1... Nf6 {[%clk 0:02:36]} 2. g3 {[%clk 0:03:02.2]} 2...
g6 {[%clk 0:02:37]} 3. Bg2 {[%clk 0:03:03.1]} 3... Bg7 {[%clk 0:02:33.2]} 4. Nc3
{[%clk 0:03:03.8]} 4... O-O {[%clk 0:02:16.6]} 5. e4 {[%clk 0:03:03.1]} 5... e5
{[%clk 0:02:16]} 6. Nge2 {[%clk 0:03:03.6]} 6... Nc6 {[%clk 0:02:17.3]} 7. d3
{[%clk 0:03:04]} 7... d6 {[%clk 0:02:18.7]} 8. O-O {[%clk 0:03:01.8]} 8... Rb8
{[%clk 0:02:18.7]} 9. h3 {[%clk 0:02:57.6]} 9... a6 {[%clk 0:02:19.9]} 10. a4
{[%clk 0:02:53]} 10... Nd4 {[%clk 0:02:15.5]} 11. Be3 {[%clk 0:02:51.8]} 11...
Nxe2+ {[%clk 0:02:02]} 12. Qxe2 {[%clk 0:02:49.1]} 12... Nd7 {[%clk 0:02:03.2]}
13. f4 {[%clk 0:02:40.7]} 13... f5 {[%clk 0:01:51.2]} 14. exf5 {[%clk 0:02:40]}
14... gxf5 {[%clk 0:01:51.4]} 15. Rae1 {[%clk 0:02:30.4]} 15... exf4 {[%clk
0:01:37.7]} 16. Bxf4 {[%clk 0:02:27.2]} 16... Nf6 {[%clk 0:01:38.1]} 17. Nd5
{[%clk 0:02:17.7]} 17... Nxd5 {[%clk 0:01:36.1]} 18. Bxd5+ {[%clk 0:02:17.8]}
18... Kh8 {[%clk 0:01:37.5]} 19. Qe7 {[%clk 0:02:01.2]} 19... Bd7 {[%clk
0:01:36]} 20. b3 {[%clk 0:01:42.2]} 20... Bc6 {[%clk 0:01:26.6]} 21. Qxd8 {[%clk
0:01:37.4]} 21... Rbxd8 {[%clk 0:01:12.9]} 22. Re7 {[%clk 0:01:33]} 22... Rd7
{[%clk 0:00:56.6]} 23. Rfe1 {[%clk 0:01:15.1]} 23... Bd4+ {[%clk 0:00:53.2]} 24.
Kg2 {[%clk 0:01:14.4]} 24... Bxd5+ {[%clk 0:00:48.2]} 25. cxd5 {[%clk
0:01:13.9]} 25... Rf7 {[%clk 0:00:50.1]} 26. Rxf7 {[%clk 0:01:05.6]} 26... Rxf7
{[%clk 0:00:50.7]} 27. Bh6 {[%clk 0:01:06.3]} 27... Be5 {[%clk 0:00:49.4]} 28.
d4 {[%clk 0:01:06.8]} 28... Rf6 {[%clk 0:00:43.6]} 29. dxe5 {[%clk 0:01:01.8]}
29... Rxh6 {[%clk 0:00:43.9]} 30. e6 {[%clk 0:01:02.9]} 1-0

[Event "*** Titled Tuesday Blitz"]
[Site "Chess.com"]
[Date "2019.02.05"]
[Round "6"]
[White "FearNoEvil12"]
[Black "ecwinslow"]
[Result "1-0"]
[WhiteElo "1953"]
[BlackElo "1989"]
[TimeControl "180+2"]
[EndTime "14:21:57 PST"]
[Termination "FearNoEvil12 won by resignation"]

1. e4 {[%clk 0:03:00.7]} 1... d6 {[%clk 0:02:59.3]} 2. Nc3 {[%clk 0:02:59.1]}
2... g6 {[%clk 0:02:59.3]} 3. f4 {[%clk 0:03:00.5]} 3... Bg7 {[%clk 0:02:59.6]}
4. Nf3 {[%clk 0:03:01.9]} 4... c6 {[%clk 0:02:59]} 5. Bc4 {[%clk 0:03:03.2]}
5... e6 {[%clk 0:02:54.1]} 6. Bb3 {[%clk 0:03:03.2]} 6... d5 {[%clk 0:02:54.1]}
7. O-O {[%clk 0:02:56.4]} 7... Nf6 {[%clk 0:02:47.7]} 8. e5 {[%clk 0:02:52.6]}
8... Nfd7 {[%clk 0:02:34.6]} 9. d4 {[%clk 0:02:51.8]} 9... a6 {[%clk 0:02:32.6]}
10. Ne2 {[%clk 0:02:51.9]} 10... c5 {[%clk 0:02:30.3]} 11. c3 {[%clk 0:02:53.1]}
11... Nc6 {[%clk 0:02:31.7]} 12. Be3 {[%clk 0:02:52]} 12... O-O {[%clk
0:02:23.4]} 13. Bc2 {[%clk 0:02:51]} 13... f5 {[%clk 0:02:23.2]} 14. exf6 {[%clk
0:02:49.3]} 14... Nxf6 {[%clk 0:02:19.4]} 15. Ne5 {[%clk 0:02:49.7]} 15... Nxe5
{[%clk 0:02:13.9]} 16. fxe5 {[%clk 0:02:49]} 16... Nd7 {[%clk 0:02:15.2]} 17.
Nf4 {[%clk 0:02:45.9]} 17... Qe7 {[%clk 0:02:05.9]} 18. Qg4 {[%clk 0:02:45.6]}
18... cxd4 {[%clk 0:01:51]} 19. cxd4 {[%clk 0:02:45.2]} 19... Nb6 {[%clk
0:01:49.1]} 20. Bxg6 {[%clk 0:02:04.7]} 20... hxg6 {[%clk 0:01:44.4]} 21. Nxg6
{[%clk 0:02:05.4]} 21... Rxf1+ {[%clk 0:01:42.5]} 22. Rxf1 {[%clk 0:02:05.8]}
22... Qe8 {[%clk 0:01:41.1]} 23. Qh5 {[%clk 0:01:26]} 23... Nd7 {[%clk
0:01:12.4]} 24. Bh6 {[%clk 0:01:23.5]} 24... b5 {[%clk 0:00:22.5]} 25. Qg5
{[%clk 0:01:16.9]} 25... Ra7 {[%clk 0:00:17.6]} 26. Ne7+ {[%clk 0:01:04.4]} 1-0

[Event "*** Titled Tuesday Blitz"]
[Site "Chess.com"]
[Date "2019.02.05"]
[Round "6"]
[White "EugeneRougon"]
[Black "KhalilMousavi77"]
[Result "1-0"]
[WhiteElo "2585"]
[BlackElo "2724"]
[TimeControl "180+2"]
[EndTime "14:22:04 PST"]
[Termination "EugeneRougon won by resignation"]

1. e4 {[%clk 0:03:01.9]} 1... e6 {[%clk 0:03:00.8]} 2. d4 {[%clk 0:03:02.3]}
2... d5 {[%clk 0:03:02.7]} 3. Nd2 {[%clk 0:03:01.4]} 3... c5 {[%clk 0:03:03]} 4.
Ngf3 {[%clk 0:03:01.1]} 4... Nc6 {[%clk 0:03:04.6]} 5. Bb5 {[%clk 0:03:02]} 5...
Bd6 {[%clk 0:03:05]} 6. exd5 {[%clk 0:02:59.3]} 6... exd5 {[%clk 0:03:06.9]} 7.
dxc5 {[%clk 0:02:59.8]} 7... Bxc5 {[%clk 0:03:08.8]} 8. O-O {[%clk 0:02:59.9]}
8... Ne7 {[%clk 0:03:10.4]} 9. Nb3 {[%clk 0:02:59.2]} 9... Bd6 {[%clk 0:03:12]}
10. Nbd4 {[%clk 0:02:54.5]} 10... O-O {[%clk 0:03:11.5]} 11. Bg5 {[%clk
0:02:53.4]} 11... f6 {[%clk 0:03:12.3]} 12. Bh4 {[%clk 0:02:54.3]} 12... Bg4
{[%clk 0:03:13.5]} 13. Be2 {[%clk 0:02:40.8]} 13... a6 {[%clk 0:03:12.1]} 14.
Bg3 {[%clk 0:02:20.1]} 14... Kh8 {[%clk 0:03:11.3]} 15. Nxc6 {[%clk 0:02:05.4]}
15... bxc6 {[%clk 0:03:13.2]} 16. Nd4 {[%clk 0:02:06.3]} 16... Bxe2 {[%clk
0:03:04.2]} 17. Qxe2 {[%clk 0:02:07.1]} 17... Bxg3 {[%clk 0:03:05.1]} 18. hxg3
{[%clk 0:02:03.7]} 18... Qb6 {[%clk 0:02:58.5]} 19. c3 {[%clk 0:02:02.1]} 19...
Ng6 {[%clk 0:02:58.5]} 20. Rfe1 {[%clk 0:02:01]} 20... Ne5 {[%clk 0:02:58.9]}
21. Rad1 {[%clk 0:01:59.3]} 21... a5 {[%clk 0:02:39.8]} 22. f4 {[%clk
0:01:45.8]} 22... Nc4 {[%clk 0:02:40.2]} 23. b3 {[%clk 0:01:37.7]} 23... Nd6
{[%clk 0:02:40.7]} 24. Qe6 {[%clk 0:01:37]} 24... Rad8 {[%clk 0:02:37.5]} 25.
Kh2 {[%clk 0:01:33.4]} 25... h6 {[%clk 0:02:36.8]} 26. Qg4 {[%clk 0:01:23.1]}
26... Rf7 {[%clk 0:02:09.2]} 27. Re6 {[%clk 0:01:23.7]} 27... Qc5 {[%clk
0:02:04.5]} 28. Qg6 {[%clk 0:01:16]} 28... Rdf8 {[%clk 0:01:44.5]} 29. b4 {[%clk
0:01:09.8]} 29... axb4 {[%clk 0:01:41.9]} 30. Nb3 {[%clk 0:01:11]} 30... Qxc3
{[%clk 0:01:36.4]} 31. Rxd6 {[%clk 0:01:12.1]} 31... Ra7 {[%clk 0:01:32.3]} 32.
Rc1 {[%clk 0:01:09.1]} 32... Qe3 {[%clk 0:01:33.4]} 33. Rdxc6 {[%clk 0:01:03.8]}
33... Rxa2 {[%clk 0:01:28.1]} 34. Rc8 {[%clk 0:01:04.4]} 34... Ra8 {[%clk
0:01:29.8]} 35. R1c7 {[%clk 0:01:00.6]} 1-0

[Event "*** Titled Tuesday Blitz"]
[Site "Chess.com"]
[Date "2019.02.05"]
[Round "6"]
[White "Angry_Serb"]
[Black "GelmanAlexander"]
[Result "0-1"]
[WhiteElo "2524"]
[BlackElo "2508"]
[TimeControl "180+2"]
[EndTime "14:22:23 PST"]
[Termination "GelmanAlexander won by resignation"]

1. e4 {[%clk 0:03:01.9]} 1... c5 {[%clk 0:03:00.9]} 2. Nc3 {[%clk 0:03:02.6]}
2... e6 {[%clk 0:03:01.9]} 3. Nf3 {[%clk 0:03:03.6]} 3... a6 {[%clk 0:03:03]} 4.
Be2 {[%clk 0:03:01.6]} 4... d6 {[%clk 0:03:04]} 5. d4 {[%clk 0:02:59.2]} 5...
cxd4 {[%clk 0:03:05.3]} 6. Qxd4 {[%clk 0:03:01.1]} 6... Nc6 {[%clk 0:03:05.6]}
7. Qe3 {[%clk 0:03:02.5]} 7... Nf6 {[%clk 0:03:06.7]} 8. O-O {[%clk 0:03:03.1]}
8... Be7 {[%clk 0:03:06.9]} 9. Rd1 {[%clk 0:03:04.2]} 9... Qc7 {[%clk
0:03:08.3]} 10. h3 {[%clk 0:02:53.5]} 10... O-O {[%clk 0:03:08.6]} 11. a4 {[%clk
0:02:49.1]} 11... b6 {[%clk 0:03:05.4]} 12. b3 {[%clk 0:02:43.7]} 12... Bb7
{[%clk 0:03:06.3]} 13. Ba3 {[%clk 0:02:43.1]} 13... Rac8 {[%clk 0:03:04.7]} 14.
Rac1 {[%clk 0:02:42.3]} 14... Rfd8 {[%clk 0:03:05.2]} 15. Bb2 {[%clk 0:02:05.9]}
15... Nd7 {[%clk 0:03:03.6]} 16. Nd2 {[%clk 0:01:55.7]} 16... Bf6 {[%clk
0:03:01.4]} 17. Nc4 {[%clk 0:01:56.6]} 17... Nc5 {[%clk 0:02:59.7]} 18. Bf3
{[%clk 0:01:07.5]} 18... h6 {[%clk 0:02:33.7]} 19. Ne2 {[%clk 0:00:55.2]} 19...
Bxb2 {[%clk 0:02:20.8]} 20. Nxb2 {[%clk 0:00:57.1]} 20... Ne5 {[%clk 0:02:14.2]}
21. Ng3 {[%clk 0:00:46.1]} 21... Nxf3+ {[%clk 0:01:52.6]} 22. gxf3 {[%clk
0:00:47.1]} 22... d5 {[%clk 0:01:52.2]} 23. Re1 {[%clk 0:00:09]} 23... d4 {[%clk
0:01:43]} 24. Qe2 {[%clk 0:00:05.9]} 24... Qf4 {[%clk 0:01:31.1]} 25. Nd3 {[%clk
0:00:06.7]} 25... Nxd3 {[%clk 0:01:31.8]} 26. Qxd3 {[%clk 0:00:07]} 26... Rc3
{[%clk 0:01:30.4]} 27. Qe2 {[%clk 0:00:08.2]} 27... Rxf3 {[%clk 0:01:30]} 28.
Nh5 {[%clk 0:00:07]} 28... Qg5+ {[%clk 0:01:27.9]} 29. Kh2 {[%clk 0:00:06.6]}
29... Qxh5 {[%clk 0:01:28.3]} 30. Qf1 {[%clk 0:00:04.9]} 30... e5 {[%clk
0:01:22]} 31. Qg2 {[%clk 0:00:05.1]} 31... Bc8 {[%clk 0:01:23]} 0-1

[Event "*** Titled Tuesday Blitz"]
[Site "Chess.com"]
[Date "2019.02.05"]
[Round "6"]
[White "BillForster"]
[Black "Orlovachess"]
[Result "1-0"]
[WhiteElo "1709"]
[BlackElo "1405"]
[TimeControl "180+2"]
[EndTime "14:22:24 PST"]
[Termination "BillForster won on time"]

1. d4 {[%clk 0:03:01.9]} 1... c5 {[%clk 0:03:00.5]} 2. d5 {[%clk 0:03:01.2]}
2... e5 {[%clk 0:03:01.5]} 3. Nc3 {[%clk 0:03:01]} 3... d6 {[%clk 0:03:02.5]} 4.
e4 {[%clk 0:03:01.7]} 4... a6 {[%clk 0:03:03.5]} 5. a4 {[%clk 0:02:59.7]} 5...
b6 {[%clk 0:03:04.2]} 6. f4 {[%clk 0:02:58]} 6... exf4 {[%clk 0:02:56.4]} 7.
Bxf4 {[%clk 0:02:57.6]} 7... Ne7 {[%clk 0:02:48.8]} 8. Bg5 {[%clk 0:02:31.2]}
8... h6 {[%clk 0:02:40.3]} 9. Bh4 {[%clk 0:02:28.3]} 9... g5 {[%clk 0:02:11.7]}
10. Bg3 {[%clk 0:02:21.3]} 10... Ng6 {[%clk 0:02:09.1]} 11. Nf3 {[%clk
0:02:19.5]} 11... Nd7 {[%clk 0:02:07.1]} 12. Be2 {[%clk 0:01:53]} 12... Qe7
{[%clk 0:01:58.4]} 13. Qd2 {[%clk 0:01:48.5]} 13... Bg7 {[%clk 0:01:56.7]} 14.
O-O-O {[%clk 0:01:38.6]} 14... b5 {[%clk 0:01:22]} 15. Rhe1 {[%clk 0:01:21.2]}
15... b4 {[%clk 0:01:09.2]} 16. Na2 {[%clk 0:01:20.3]} 16... Qf6 {[%clk
0:00:24.3]} 17. c4 {[%clk 0:00:56.1]} 17... bxc3 {[%clk 0:00:20.5]} 18. Nxc3
{[%clk 0:00:56]} 18... O-O {[%clk 0:00:20.9]} 19. Bc4 {[%clk 0:00:45.1]} 19...
Nb6 {[%clk 0:00:19.4]} 20. Ba2 {[%clk 0:00:40.2]} 20... Rb8 {[%clk 0:00:13.2]}
21. e5 {[%clk 0:00:37.3]} 21... dxe5 {[%clk 0:00:03.1]} 22. Nxe5 {[%clk
0:00:36.5]} 1-0

[Event "*** Titled Tuesday Blitz"]
[Site "Chess.com"]
[Date "2019.02.05"]
[Round "6"]
[White "HrvojeZagreb"]
[Black "Kawhi_Leonard2"]
[Result "0-1"]
[WhiteElo "2106"]
[BlackElo "2238"]
[TimeControl "180+2"]
[EndTime "14:22:28 PST"]
[Termination "Kawhi_Leonard2 won by checkmate"]

1. d4 {[%clk 0:03:01.9]} 1... Nf6 {[%clk 0:03:00.3]} 2. Bf4 {[%clk 0:03:02.1]}
2... e6 {[%clk 0:03:00.8]} 3. e3 {[%clk 0:03:02.7]} 3... d5 {[%clk 0:03:02.4]}
4. Bd3 {[%clk 0:03:03.2]} 4... Bd6 {[%clk 0:03:04]} 5. Bg3 {[%clk 0:03:04.4]}
5... O-O {[%clk 0:03:05.1]} 6. Nf3 {[%clk 0:03:04.6]} 6... c5 {[%clk 0:03:06.7]}
7. c3 {[%clk 0:03:05.3]} 7... Nc6 {[%clk 0:03:08.2]} 8. Nbd2 {[%clk 0:03:03.2]}
8... b6 {[%clk 0:03:09.6]} 9. Ne5 {[%clk 0:02:43.5]} 9... Qc7 {[%clk 0:03:09.4]}
10. f4 {[%clk 0:02:16.9]} 10... Bb7 {[%clk 0:03:08.9]} 11. Bh4 {[%clk
0:02:10.2]} 11... Be7 {[%clk 0:03:02.4]} 12. Bxf6 {[%clk 0:02:03.9]} 12... Bxf6
{[%clk 0:03:00.6]} 13. Qf3 {[%clk 0:01:47.5]} 13... Ne7 {[%clk 0:02:54.3]} 14.
Qh3 {[%clk 0:01:44.1]} 14... g6 {[%clk 0:02:54.3]} 15. g4 {[%clk 0:01:40.9]}
15... Bg7 {[%clk 0:02:52.5]} 16. g5 {[%clk 0:01:38.4]} 16... Nf5 {[%clk
0:02:50.3]} 17. Bxf5 {[%clk 0:01:37.4]} 17... exf5 {[%clk 0:02:50.4]} 18. Qg3
{[%clk 0:01:34.2]} 18... f6 {[%clk 0:02:48.4]} 19. gxf6 {[%clk 0:01:34.6]} 19...
Bxf6 {[%clk 0:02:49.6]} 20. h4 {[%clk 0:01:35.7]} 20... Kh8 {[%clk 0:02:39.2]}
21. h5 {[%clk 0:01:32.4]} 21... g5 {[%clk 0:02:39.3]} 22. fxg5 {[%clk
0:01:33.2]} 22... Bxe5 {[%clk 0:02:40.5]} 23. dxe5 {[%clk 0:01:34.1]} 23... Rae8
{[%clk 0:02:32.5]} 24. Nf3 {[%clk 0:01:24.9]} 24... d4 {[%clk 0:02:30.2]} 25.
exd4 {[%clk 0:01:19.7]} 25... cxd4 {[%clk 0:02:30.3]} 26. cxd4 {[%clk
0:01:19.9]} 26... f4 {[%clk 0:02:29]} 27. Qf2 {[%clk 0:01:12.6]} 27... Qc4
{[%clk 0:02:24.7]} 28. Rd1 {[%clk 0:01:02.3]} 28... Qb4+ {[%clk 0:02:21.4]} 29.
Kf1 {[%clk 0:00:59.7]} 29... Rc8 {[%clk 0:01:26.3]} 30. g6 {[%clk 0:00:49.4]}
30... Be4 {[%clk 0:01:23.1]} 31. d5 {[%clk 0:00:21.4]} 31... Rc2 {[%clk
0:01:22.1]} 32. g7+ {[%clk 0:00:21.8]} 32... Kxg7 {[%clk 0:01:20.5]} 33. Rg1+
{[%clk 0:00:23.1]} 33... Kh8 {[%clk 0:01:14.9]} 34. Qd4 {[%clk 0:00:23.3]} 34...
Qb5+ {[%clk 0:01:08.4]} 35. Ke1 {[%clk 0:00:24.3]} 35... Qe2# {[%clk 0:01:08.7]}
0-1

[Event "*** Titled Tuesday Blitz"]
[Site "Chess.com"]
[Date "2019.02.05"]
[Round "6"]
[White "AsaHoffmann"]
[Black "DonPreuss"]
[Result "1/2-1/2"]
[WhiteElo "2182"]
[BlackElo "2180"]
[TimeControl "180+2"]
[EndTime "14:22:28 PST"]
[Termination "Game drawn by repetition"]

1. d4 {[%clk 0:02:59.6]} 1... Nc6 {[%clk 0:03:00.1]} 2. Nc3 {[%clk 0:02:57]}
2... e5 {[%clk 0:03:00.8]} 3. Nf3 {[%clk 0:02:53.3]} 3... exd4 {[%clk
0:02:59.7]} 4. Nxd4 {[%clk 0:02:53.5]} 4... Bc5 {[%clk 0:03:01.2]} 5. Nf5 {[%clk
0:02:53.1]} 5... Qf6 {[%clk 0:02:59.4]} 6. e4 {[%clk 0:02:52.6]} 6... Nge7
{[%clk 0:02:54.4]} 7. Ne3 {[%clk 0:02:50.8]} 7... O-O {[%clk 0:02:50.4]} 8. Be2
{[%clk 0:02:50.9]} 8... d6 {[%clk 0:02:50.1]} 9. O-O {[%clk 0:02:49.1]} 9... Qg6
{[%clk 0:02:47.8]} 10. Bh5 {[%clk 0:02:41.8]} 10... Qe6 {[%clk 0:02:44.5]} 11.
Ned5 {[%clk 0:02:38.9]} 11... Qd7 {[%clk 0:02:45.4]} 12. h3 {[%clk 0:02:30.3]}
12... Nxd5 {[%clk 0:02:45.3]} 13. Nxd5 {[%clk 0:02:28.1]} 13... Ne5 {[%clk
0:02:44.3]} 14. Kh1 {[%clk 0:02:23.7]} 14... c6 {[%clk 0:02:34.6]} 15. Ne3
{[%clk 0:02:21.5]} 15... Bxe3 {[%clk 0:02:26.1]} 16. Bxe3 {[%clk 0:02:20.4]}
16... f5 {[%clk 0:02:28]} 17. f4 {[%clk 0:02:14.1]} 17... Nc4 {[%clk 0:02:22.6]}
18. Bd4 {[%clk 0:02:07.9]} 18... fxe4 {[%clk 0:02:21.5]} 19. b3 {[%clk 0:02:06]}
19... Nb6 {[%clk 0:02:18.7]} 20. c4 {[%clk 0:02:05.1]} 20... d5 {[%clk
0:02:17.7]} 21. Rc1 {[%clk 0:01:53.9]} 21... Qe7 {[%clk 0:02:07.3]} 22. cxd5
{[%clk 0:01:50.9]} 22... Nxd5 {[%clk 0:01:55.3]} 23. Bc5 {[%clk 0:01:50.8]}
23... Qf6 {[%clk 0:01:56.5]} 24. Bxf8 {[%clk 0:01:50.1]} 24... Qxf8 {[%clk
0:01:58.4]} 25. Qd4 {[%clk 0:01:49.2]} 25... Qe7 {[%clk 0:01:35.7]} 26. Rce1
{[%clk 0:01:45.4]} 26... Bf5 {[%clk 0:01:36.4]} 27. g4 {[%clk 0:01:44.4]} 27...
Qh4 {[%clk 0:01:36.1]} 28. Kg2 {[%clk 0:01:44.4]} 28... g6 {[%clk 0:01:17]} 29.
gxf5 {[%clk 0:01:33.9]} 29... gxh5 {[%clk 0:01:03.9]} 30. Qxe4 {[%clk
0:01:31.9]} 30... Kh8 {[%clk 0:00:57.4]} 31. Qe5+ {[%clk 0:01:28.9]} 31... Nf6
{[%clk 0:00:58.4]} 32. Kh2 {[%clk 0:01:24.8]} 32... Rg8 {[%clk 0:00:58.6]} 33.
Rg1 {[%clk 0:01:22.6]} 33... Qf2+ {[%clk 0:00:57.2]} 34. Kh1 {[%clk 0:01:21.1]}
34... Qf3+ {[%clk 0:00:35]} 35. Kh2 {[%clk 0:01:20.8]} 35... Qf2+ {[%clk
0:00:23.5]} 36. Kh1 {[%clk 0:01:20.7]} 36... Qf3+ {[%clk 0:00:24.7]} 37. Kh2
{[%clk 0:01:20.7]} 37... Qf2+ {[%clk 0:00:26]} 38. Kh1 {[%clk 0:01:20.2]}
1/2-1/2

[Event "*** Titled Tuesday Blitz"]
[Site "Chess.com"]
[Date "2019.02.05"]
[Round "6"]
[White "IMRosen"]
[Black "GM_shahin"]
[Result "0-1"]
[WhiteElo "2517"]
[BlackElo "2733"]
[TimeControl "180+2"]
[EndTime "14:22:29 PST"]
[Termination "GM_shahin won on time"]

1. d4 {[%clk 0:03:01.9]} 1... Nf6 {[%clk 0:02:59.9]} 2. Bf4 {[%clk 0:03:03.2]}
2... e6 {[%clk 0:03:00.6]} 3. e3 {[%clk 0:03:04]} 3... d5 {[%clk 0:03:01.8]} 4.
Nd2 {[%clk 0:03:04.4]} 4... c5 {[%clk 0:03:03.7]} 5. Ngf3 {[%clk 0:03:03.7]}
5... Nc6 {[%clk 0:03:05.6]} 6. c3 {[%clk 0:03:04.3]} 6... Qb6 {[%clk 0:03:06.7]}
7. Qb3 {[%clk 0:03:02.8]} 7... c4 {[%clk 0:03:07.9]} 8. Qc2 {[%clk 0:03:03.6]}
8... Nh5 {[%clk 0:03:07.6]} 9. Bg5 {[%clk 0:02:52.8]} 9... f6 {[%clk 0:03:08.6]}
10. Bh4 {[%clk 0:02:53.9]} 10... g5 {[%clk 0:03:07.7]} 11. Bg3 {[%clk
0:02:54.7]} 11... e5 {[%clk 0:03:06.1]} 12. dxe5 {[%clk 0:02:00.3]} 12... g4
{[%clk 0:02:59.7]} 13. Nd4 {[%clk 0:01:58.2]} 13... Nxg3 {[%clk 0:02:59.3]} 14.
hxg3 {[%clk 0:01:58.5]} 14... fxe5 {[%clk 0:02:59.2]} 15. Nxc6 {[%clk
0:01:45.8]} 15... bxc6 {[%clk 0:03:01.1]} 16. Rxh7 {[%clk 0:01:37.8]} 16... Rxh7
{[%clk 0:03:01]} 17. Qxh7 {[%clk 0:01:39.7]} 17... Qxb2 {[%clk 0:03:02.3]} 18.
Qg6+ {[%clk 0:01:41.3]} 18... Kd8 {[%clk 0:03:01]} 19. Rb1 {[%clk 0:01:25.7]}
19... Qxc3 {[%clk 0:03:01.6]} 20. Qxc6 {[%clk 0:01:20.8]} 20... Bb4 {[%clk
0:03:02.4]} 21. Qxd5+ {[%clk 0:01:06.5]} 21... Ke7 {[%clk 0:02:45.5]} 22. Rxb4
{[%clk 0:00:46.6]} 22... Qxb4 {[%clk 0:02:45.5]} 23. Qxa8 {[%clk 0:00:40.4]}
23... c3 {[%clk 0:02:45.6]} 24. Qxc8 {[%clk 0:00:19.3]} 24... cxd2+ {[%clk
0:02:45.5]} 25. Kd1 {[%clk 0:00:20.2]} 25... Qb1+ {[%clk 0:02:45.7]} 26. Kxd2
{[%clk 0:00:20]} 26... Qxf1 {[%clk 0:02:47.6]} 27. Qc7+ {[%clk 0:00:19.3]} 27...
Ke6 {[%clk 0:02:48.3]} 28. Qc6+ {[%clk 0:00:19.3]} 28... Kf5 {[%clk 0:02:46.3]}
29. Qc2+ {[%clk 0:00:18.9]} 29... Kg5 {[%clk 0:02:46.1]} 30. Kc3 {[%clk
0:00:15.7]} 30... Qxg2 {[%clk 0:02:46]} 31. Qd2 {[%clk 0:00:11.9]} 31... Qc6+
{[%clk 0:02:47.2]} 32. Kd3 {[%clk 0:00:11]} 32... Qg6+ {[%clk 0:02:47.7]} 33.
Ke2 {[%clk 0:00:11.4]} 33... Qa6+ {[%clk 0:02:48.8]} 34. Ke1 {[%clk 0:00:11.8]}
34... Qc4 {[%clk 0:02:48.1]} 35. Qd8+ {[%clk 0:00:11.8]} 35... Kf5 {[%clk
0:02:48.6]} 36. Qd7+ {[%clk 0:00:12.6]} 36... Kf6 {[%clk 0:02:47.6]} 37. Qxa7
{[%clk 0:00:12.4]} 37... Qc1+ {[%clk 0:02:48.1]} 38. Ke2 {[%clk 0:00:13.5]}
38... Qc4+ {[%clk 0:02:48.7]} 39. Kd2 {[%clk 0:00:12.5]} 39... Qd5+ {[%clk
0:02:48.4]} 40. Ke1 {[%clk 0:00:13.2]} 40... Qh1+ {[%clk 0:02:49.3]} 41. Ke2
{[%clk 0:00:13.5]} 41... Qf3+ {[%clk 0:02:50.1]} 42. Ke1 {[%clk 0:00:14.8]}
42... Qh1+ {[%clk 0:02:51.3]} 43. Kd2 {[%clk 0:00:16.5]} 43... Qd5+ {[%clk
0:02:51.8]} 44. Kc3 {[%clk 0:00:17.4]} 44... Qc6+ {[%clk 0:02:52.2]} 45. Kb4
{[%clk 0:00:16.9]} 45... Qd6+ {[%clk 0:02:53.5]} 46. Kb5 {[%clk 0:00:14.2]}
46... Qd3+ {[%clk 0:02:53.8]} 47. Kc6 {[%clk 0:00:11.5]} 47... Qc2+ {[%clk
0:02:53.3]} 48. Kd7 {[%clk 0:00:09.9]} 48... Qh7+ {[%clk 0:02:48]} 0-1

[Event "*** Titled Tuesday Blitz"]
[Site "Chess.com"]
[Date "2019.02.05"]
[Round "6"]
[White "ZeroRealtorFade"]
[Black "Godzillator"]
[Result "0-1"]
[WhiteElo "2251"]
[BlackElo "2388"]
[TimeControl "180+2"]
[EndTime "14:22:31 PST"]
[Termination "Godzillator won by checkmate"]

1. d4 {[%clk 0:03:00.4]} 1... d5 {[%clk 0:03:00]} 2. Bf4 {[%clk 0:03:01.8]} 2...
c5 {[%clk 0:02:59.5]} 3. e3 {[%clk 0:03:02.3]} 3... cxd4 {[%clk 0:03:00.3]} 4.
exd4 {[%clk 0:03:03.3]} 4... Nc6 {[%clk 0:03:01.6]} 5. c3 {[%clk 0:03:04.4]}
5... Nf6 {[%clk 0:03:02.8]} 6. Nf3 {[%clk 0:03:05.5]} 6... Bg4 {[%clk
0:03:03.5]} 7. Nbd2 {[%clk 0:03:06.4]} 7... e6 {[%clk 0:03:04.3]} 8. Bd3 {[%clk
0:03:05.4]} 8... Be7 {[%clk 0:03:05.3]} 9. O-O {[%clk 0:03:06.6]} 9... O-O
{[%clk 0:03:06.2]} 10. Re1 {[%clk 0:03:05.8]} 10... Bd6 {[%clk 0:03:06.2]} 11.
Bg5 {[%clk 0:02:58.9]} 11... Rb8 {[%clk 0:03:02.9]} 12. Qc2 {[%clk 0:02:58.2]}
12... h6 {[%clk 0:03:02.4]} 13. Bh4 {[%clk 0:02:58]} 13... b5 {[%clk 0:02:58.5]}
14. Ne5 {[%clk 0:02:57.1]} 14... Qc7 {[%clk 0:02:48.7]} 15. Bxf6 {[%clk
0:02:56]} 15... gxf6 {[%clk 0:02:38.5]} 16. Nxg4 {[%clk 0:02:56.7]} 16... f5
{[%clk 0:02:39.6]} 17. Ne5 {[%clk 0:02:29.8]} 17... Bxe5 {[%clk 0:02:32.3]} 18.
dxe5 {[%clk 0:02:31.6]} 18... Nxe5 {[%clk 0:02:33.2]} 19. Nf3 {[%clk 0:01:29.3]}
19... Nxf3+ {[%clk 0:02:25.8]} 20. gxf3 {[%clk 0:01:31.1]} 20... Qf4 {[%clk
0:02:25.1]} 21. Qe2 {[%clk 0:01:24.2]} 21... Kh8 {[%clk 0:02:25.4]} 22. Qe5+
{[%clk 0:01:22.9]} 22... Qxe5 {[%clk 0:02:24.9]} 23. Rxe5 {[%clk 0:01:24.8]}
23... b4 {[%clk 0:02:26]} 24. cxb4 {[%clk 0:01:20.4]} 24... Rxb4 {[%clk
0:02:26.2]} 25. Re2 {[%clk 0:01:21.2]} 25... Rc8 {[%clk 0:02:25.4]} 26. Rb1
{[%clk 0:01:12.2]} 26... Kg7 {[%clk 0:02:25.3]} 27. Rc2 {[%clk 0:01:09.9]} 27...
Rcb8 {[%clk 0:02:23.5]} 28. b3 {[%clk 0:01:08.4]} 28... Kf6 {[%clk 0:02:23.1]}
29. Rc7 {[%clk 0:01:02.7]} 29... a5 {[%clk 0:02:24.2]} 30. Ra7 {[%clk
0:01:01.4]} 30... Rd4 {[%clk 0:02:19.1]} 31. Bf1 {[%clk 0:00:51]} 31... a4
{[%clk 0:02:19.2]} 32. Rc7 {[%clk 0:00:24.2]} 32... axb3 {[%clk 0:02:14.3]} 33.
axb3 {[%clk 0:00:23.7]} 33... Rg8+ {[%clk 0:02:08.4]} 34. Kh1 {[%clk 0:00:24.1]}
34... Rf4 {[%clk 0:02:09.6]} 35. Be2 {[%clk 0:00:23.3]} 35... Ra8 {[%clk
0:02:08.9]} 36. b4 {[%clk 0:00:21.4]} 36... Ra2 {[%clk 0:02:09.3]} 37. Re1
{[%clk 0:00:17.1]} 37... Rxb4 {[%clk 0:02:08.3]} 38. Kg2 {[%clk 0:00:15.2]}
38... Rbb2 {[%clk 0:02:07.1]} 39. Kf1 {[%clk 0:00:14.8]} 39... d4 {[%clk
0:02:07.7]} 40. Rd7 {[%clk 0:00:15.2]} 40... Rd2 {[%clk 0:02:08.7]} 41. Bc4
{[%clk 0:00:14.4]} 41... Rxf2+ {[%clk 0:02:08.4]} 42. Kg1 {[%clk 0:00:15.5]}
42... Rg2+ {[%clk 0:02:09.5]} 43. Kh1 {[%clk 0:00:16.6]} 43... Rxh2+ {[%clk
0:02:10.6]} 44. Kg1 {[%clk 0:00:17.8]} 44... Rag2+ {[%clk 0:02:10.6]} 45. Kf1
{[%clk 0:00:18.9]} 45... Rc2 {[%clk 0:02:11]} 46. Bd3 {[%clk 0:00:18.7]} 46...
Rh1# {[%clk 0:02:11.1]} 0-1